bitfinex-derivatives/quotes_SOLF0:USTF0_20250415
["timestamp","ask_amount","ask_price","bid_price","bid_amount"]
[1744686120705,8.34809263,129.41,129.35,31.72]
[1744686121096,7.7308,129.38,129.35,31.72]
[1744686121605,7.78944186,129.38,129.35,31.74877608]
[1744686122200,0.05864186,129.38,129.35,31.74877608]
[1744686123107,0.05864186,129.38,129.36,7.7314]
[1744686123301,0.05864186,129.38,129.35,31.74877608]
[1744686124001,0.05864186,129.38,129.35,0.02877608]
[1744686124305,8.34809263,129.37,129.35,0.02877608]
[1744686124506,7.7346,129.32,129.3,31.74]
[1744686124710,8.34809263,129.34,129.3,31.74]
[1744686125607,0.05559455,129.33,129.3,31.74]
[1744686125801,0.05559455,129.33,129.27,31.74]
[1744686126205,7.735,129.31,129.27,39.477]
[1744686126499,0.05807599,129.3,129.28,8.34809263]
[1744686126706,7.7327,129.35,129.3,7.7349]
[1744686126906,31.74,129.37,129.28,8.34809263]
[1744686127106,31.74,129.37,129.27,31.74]
[1744686127107,13.43424184,129.36,129.27,31.74]
[1744686127808,7.7351,129.31,129.3,0.05115494]
[1744686132214,7.7367,129.28,129.25,2.0095]
[1744686132607,13.43424184,129.32,129.25,2.0095]
[1744686132809,13.43424184,129.3,129.24,31.74]
[1744686133010,7.7383,129.25,129.24,31.74]
[1744686133715,0.04981097,129.26,129.24,31.74]
[1744686134411,0.04981097,129.26,129.21,31.76]
[1744686134617,7.7389,129.24,129.21,31.76]
[1744686134918,0.04981097,129.26,129.21,31.76]
[1744686135110,7.7387,129.25,129.21,31.76]
[1744686135416,0.04981097,129.26,129.21,31.76]
[1744686135816,0.04981097,129.26,129.21,39.5004]
[1744686136016,0.04981097,129.26,129.21,31.76]
[1744686136218,7.7395,129.24,129.21,31.76]
[1744686137719,0.04981097,129.26,129.21,31.76]
[1744686138019,13.48405281,129.26,129.21,31.76]
[1744686138723,7.7398,129.23,129.21,31.76]
[1744686139026,7.79534236,129.23,129.21,31.76]
[1744686139517,0.05554236,129.23,129.21,31.76]
[1744686141124,7.79504236,129.23,129.21,31.76]
[1744686141518,0.05554236,129.23,129.21,31.76]
[1744686142018,7.79504236,129.23,129.21,31.76]
[1744686142417,0.05554236,129.23,129.21,31.76]
[1744686142623,0.05554236,129.23,129.19,2.1839]
[1744686143322,7.7401,129.22,129.19,2.1839]
[1744686143826,7.79524236,129.23,129.19,2.1839]
[1744686144122,7.79524236,129.23,129.19,7.7415]
[1744686145430,0.05554236,129.23,129.18,45.21424184]
[1744686145622,388.76,129.29,129.2,13.43424184]
[1744686145820,31.76,129.29,129.21,1.9764]
[1744686146022,7.7381,129.26,129.22,38.8195]
[1744686146425,7.7381,129.26,129.22,31.08]
[1744686146626,31.76,129.29,129.23,0.05733622]
[1744686146828,0.05138871,129.25,129.23,0.05733622]
[1744686148030,0.05138871,129.25,129.23,7.79663622]
[1744686148929,0.05138871,129.25,129.23,0.05733622]
[1744686149624,0.05138871,129.25,129.23,7.79683622]
[1744686149825,0.05138871,129.25,129.23,0.05733622]
[1744686150025,371.790771,129.33,129.24,8.403771]
[1744686150327,7.7357,129.3,129.24,8.403771]
[1744686150724,7.7357,129.3,129.26,7.7372]
[1744686151025,0.05389187,129.29,129.27,31.1361708]
[1744686151227,8.403771,129.35,129.27,31.1361708]
[1744686151526,8.403771,129.37,129.28,8.403771]
[1744686151719,7.7341,129.32,129.28,8.403771]
[1744686151917,8.403771,129.37,129.29,7.7356]
[1744686152124,7.7325,129.35,129.28,8.403771]
[1744686152430,0.05524496,129.34,129.32,0.05124182]
[1744686153431,0.05524496,129.34,129.33,7.7335]
[1744686153626,8.403771,129.41,129.32,8.45501282]
[1744686153829,8.403771,129.41,129.32,8.403771]
[1744686154028,7.7303,129.39,129.32,8.403771]
[1744686154230,8.403771,129.41,129.32,8.403771]
[1744686154630,7.7297,129.4,129.36,7.7316]
[1744686154830,0.0565005,129.38,129.36,31.06]
[1744686160136,0.0565005,129.38,129.35,0.05867051]
[1744686160338,8.403771,129.37,129.35,0.05867051]
[1744686160537,7.7317,129.36,129.35,0.05867051]
[1744686162534,8.403771,129.37,129.3,31.06]
[1744686162742,8.403771,129.32,129.28,31.06]
[1744686162932,8.403771,129.32,129.26,31.06]
[1744686163140,7.7343,129.32,129.26,31.06]
[1744686163339,7.7343,129.32,129.26,33.106]
[1744686163544,7.7343,129.32,129.28,7.7364]
[1744686163843,0.05806593,129.3,129.28,0.05723485]
[1744686165044,7.79346593,129.3,129.28,0.05723485]
[1744686166146,0.05806593,129.3,129.28,0.05723485]
[1744686168548,0.05806593,129.3,129.29,7.7359]
[1744686168753,6.2838,129.36,129.28,8.46100585]
[1744686168754,14.687571,129.36,129.28,8.46100585]
[1744686168946,14.687571,129.36,129.28,8.403771]
[1744686169148,7.7333,129.34,129.3,7.735]
[1744686169344,7.7333,129.34,129.3,38.795]
[1744686169548,14.687571,129.36,129.3,38.795]
[1744686169751,0.05374922,129.34,129.32,0.05203342]
[1744686171154,7.7336,129.33,129.32,0.05203342]
[1744686171953,7.78684922,129.34,129.32,0.05203342]
[1744686172850,0.05374922,129.34,129.32,0.05203342]
[1744686173454,0.05374922,129.34,129.32,7.78583342]
[1744686173955,0.05374922,129.34,129.32,0.05203342]
[1744686174159,0.05374922,129.34,129.32,8.45580442]
[1744686174357,2.0586,129.4,129.32,10.62300442]
[1744686174552,2.0586,129.4,129.32,10.570971]
[1744686174754,7.7309,129.38,129.34,7.7324]
[1744686174953,7.7309,129.38,129.35,30.48]
[1744686175152,8.403771,129.38,129.32,30.48]
[1744686175353,7.7331,129.34,129.32,30.48]
[1744686175655,7.78283812,129.34,129.32,30.52967142]
[1744686176057,7.7335,129.33,129.32,30.52967142]
[1744686176458,0.04973812,129.34,129.32,30.52967142]
[1744686178161,7.78283812,129.34,129.32,30.52967142]
[1744686178551,357.0,129.45,129.32,38.26967142]
[1744686178751,357.0,129.45,129.36,8.403771]
[1744686179053,8.403771,129.48,129.39,8.403771]
[1744686179663,8.403771,129.48,129.41,7.7286]
[1744686179859,0.05549834,129.45,129.42,30.53609103]
[1744686180455,0.05549834,129.45,129.42,38.26419103]
[1744686181060,0.05549834,129.45,129.42,30.53609103]
[1744686182263,0.05549834,129.45,129.42,38.26389103]
[1744686182462,0.05549834,129.45,129.42,30.53609103]
[1744686182765,0.05549834,129.45,129.42,38.26389103]
[1744686182962,0.05549834,129.45,129.42,30.53609103]
[1744686184458,0.05549834,129.45,129.42,38.26379103]
[1744686184666,0.05549834,129.45,129.42,0.05609103]
[1744686185066,7.727,129.44,129.42,0.05609103]
[1744686185266,0.05549834,129.45,129.42,0.05609103]
[1744686185660,0.05549834,129.45,129.43,8.403771]
[1744686185866,357.0,129.5,129.43,8.403771]
[1744686186065,4.1585,129.52,129.46,8.403771]
[1744686186266,4.1585,129.52,129.47,30.46]
[1744686186966,7.77998796,129.51,129.48,0.05113084]
[1744686187166,0.05718796,129.51,129.48,0.05113084]
[1744686189558,7.78018796,129.51,129.48,0.05113084]
[1744686190667,0.05718796,129.51,129.48,0.05113084]
[1744686191569,7.77998796,129.51,129.48,0.05113084]
[1744686191769,0.05718796,129.51,129.48,0.05113084]
[1744686192067,115.5806,129.81,129.5,8.403771]
[1744686192068,6.2682,129.57,129.5,8.403771]
[1744686192259,6.2682,129.57,129.51,30.44]
[1744686192567,8.403771,129.56,129.51,30.44]
[1744686192771,8.403771,129.52,129.47,30.44]
[1744686192972,2.1169,129.51,129.47,30.44]
[1744686193168,2.17415023,129.51,129.48,0.05745712]
[1744686193369,7.7244,129.49,129.48,0.05745712]
[1744686193568,4.34985023,129.51,129.48,0.05745712]
[1744686194369,8.403771,129.5,129.48,0.05745712]
[1744686194566,10.433071,129.5,129.48,0.05745712]
[1744686194872,7.7239,129.49,129.48,0.05745712]
[1744686196173,4.34985023,129.51,129.48,0.05745712]
[1744686196674,7.7239,129.49,129.48,0.05745712]
[1744686197471,12.07275023,129.51,129.48,0.05745712]
[1744686198477,7.78015023,129.51,129.48,0.05745712]
[1744686198875,7.78015023,129.51,129.48,30.49745712]
[1744686199478,0.05725023,129.51,129.48,30.49745712]
[1744686199674,0.05725023,129.51,129.48,38.90122812]
[1744686200077,0.05725023,129.51,129.48,46.62522812]
[1744686200471,0.05725023,129.51,129.48,38.90122812]
[1744686201078,0.05725023,129.51,129.48,30.49745712]
[1744686202174,0.05725023,129.51,129.48,38.90122812]
[1744686203077,2.0474,129.58,129.5,8.403771]
[1744686203578,12.589771,129.59,129.52,8.403771]
[1744686203878,12.589771,129.59,129.53,30.26]
[1744686204080,12.589771,129.59,129.52,30.26]
[1744686204276,8.45648228,129.57,129.52,30.26]
[1744686204478,8.403771,129.55,129.49,30.26]
[1744686205381,8.403771,129.53,129.49,30.26]
[1744686205575,0.05495932,129.52,129.5,0.05520463]
[1744686206575,7.7228,129.51,129.5,0.05520463]
[1744686214385,7.77715932,129.52,129.5,0.05520463]
[1744686214686,0.05495932,129.52,129.5,0.05520463]
[1744686214989,0.05495932,129.52,129.51,7.7228]
[1744686215288,4.186,129.59,129.5,8.45897563]
[1744686215487,7.719,129.58,129.54,7.7206]
[1744686215681,7.719,129.58,129.54,37.9806]
[1744686216191,7.7193,129.57,129.54,37.9806]
[1744686216493,7.77169042,129.57,129.54,38.03974753]
[1744686216993,0.05239042,129.57,129.54,0.05914753]
[1744686217493,7.7201,129.56,129.54,0.05914753]
[1744686218394,7.7204,129.55,129.54,0.05914753]
[1744686218889,7.72,129.56,129.54,0.05914753]
[1744686219091,0.05239042,129.57,129.54,0.05914753]
[1744686219493,7.7204,129.55,129.54,0.05914753]
[1744686221396,7.72,129.56,129.54,0.05914753]
[1744686221793,0.05239042,129.57,129.54,0.05914753]
[1744686222592,7.7198,129.56,129.54,0.05914753]
[1744686224597,0.05239042,129.57,129.54,0.05914753]
[1744686224891,8.403771,129.55,129.51,30.26]
[1744686226097,8.403771,129.55,129.52,0.05077795]
[1744686226098,0.05916459,129.54,129.52,0.05077795]
[1744686226895,7.7216,129.53,129.52,0.05077795]
[1744686230790,371.805971,129.53,129.43,586.2]
[1744686230989,8.403771,129.5,129.43,586.2]
[1744686231298,7.7258,129.46,129.43,586.2]
[1744686231701,8.403771,129.5,129.43,586.2]
[1744686231997,0.05577875,129.46,129.43,586.25785875]
[1744686232200,0.05577875,129.46,129.43,593.98505875]
[1744686232399,0.05577875,129.46,129.44,8.403771]
[1744686232701,8.403771,129.52,129.44,8.403771]
[1744686232902,7.724,129.49,129.45,7.726]
[1744686233202,7.724,129.49,129.46,30.26]
[1744686233401,7.7225,129.52,129.48,7.7244]
[1744686233602,0.0510786,129.49,129.46,38.71878536]
[1744686233799,0.0510786,129.49,129.46,38.71759894]
[1744686234303,0.0510786,129.49,129.47,7.7247]
[1744686236999,0.0510786,129.49,129.46,46.44309894]
[1744686237401,8.403771,129.48,129.41,29.9]
[1744686237902,38.303771,129.5,129.41,38.303771]
[1744686238206,8.403771,129.48,129.41,29.9]
[1744686238705,0.05094012,129.46,129.43,0.05149447]
[1744686239110,7.7267,129.45,129.43,0.05149447]
[1744686239407,0.05094012,129.46,129.43,0.05149447]
[1744686240410,7.7269,129.44,129.43,0.05149447]
[1744686241012,0.05094012,129.46,129.43,0.05149447]
[1744686241906,7.7263,129.45,129.43,0.05149447]
[1744686242715,7.77694012,129.46,129.43,0.05149447]
[1744686243010,0.05094012,129.46,129.44,29.92]
[1744686244110,0.05094012,129.46,129.44,37.6466]
[1744686245713,0.05094012,129.46,129.44,29.92]
[1744686246812,7.77674012,129.46,129.44,29.92]
[1744686247507,7.7263,129.45,129.44,29.92]
[1744686247906,0.05094012,129.46,129.43,0.05149447]
[1744686248915,7.7269,129.44,129.43,0.05149447]
[1744686249815,8.403771,129.44,129.38,29.92]
[1744686250616,8.403771,129.42,129.36,7.7316]
[1744686250820,8.403771,129.42,129.34,36.1971]
[1744686251015,0.05095222,129.4,129.38,0.05322187]
[1744686251415,7.7323,129.35,129.34,29.92]
[1744686252509,8.403771,129.38,129.34,29.92]
[1744686252510,7.78895138,129.36,129.34,29.92]
[1744686252906,7.7323,129.35,129.34,29.92]
[1744686253811,7.7329,129.34,129.33,0.05062182]
[1744686254011,16.136671,129.34,129.33,0.05062182]
[1744686254411,7.7325,129.35,129.33,0.05062182]
[1744686254611,8.46082238,129.36,129.33,0.05062182]
[1744686254813,7.7329,129.34,129.33,0.05062182]
[1744686255014,8.403771,129.34,129.28,29.92]
[1744686255219,8.403771,129.32,129.28,29.92]
[1744686255614,29.92,129.34,129.29,7.7354]
[1744686255812,29.92,129.34,129.28,38.323771]
[1744686256016,0.05430987,129.32,129.3,0.05222069]
[1744686257022,0.05430987,129.32,129.3,7.78712069]
[1744686257921,0.05430987,129.32,129.3,0.05222069]
[1744686258223,8.45808087,129.32,129.3,0.05222069]
[1744686258921,7.7347,129.31,129.3,0.05222069]
[1744686263020,8.45808087,129.32,129.25,29.94]
[1744686263226,8.403771,129.3,129.25,29.94]
[1744686264027,8.403771,129.28,129.22,29.9]
[1744686264226,38.303771,129.3,129.24,0.05441861]
[1744686264426,0.04994381,129.26,129.24,0.05441861]
[1744686265330,0.04994381,129.26,129.24,7.79281861]
[1744686265630,0.04994381,129.26,129.24,0.05441861]
[1744686266329,7.78764381,129.26,129.24,0.05441861]
[1744686266630,0.04994381,129.26,129.24,0.05441861]
[1744686268830,7.78784381,129.26,129.24,0.05441861]
[1744686269019,0.04994381,129.26,129.24,0.05441861]
[1744686269530,7.78804381,129.26,129.24,0.05441861]
[1744686271431,0.04994381,129.26,129.24,7.79331861]
[1744686271831,0.04994381,129.26,129.24,0.05441861]
[1744686272130,7.78764381,129.26,129.24,0.05441861]
[1744686275231,0.04994381,129.26,129.24,0.05441861]
[1744686275431,0.04994381,129.26,129.24,8.45818961]
[1744686275626,0.04994381,129.26,129.24,0.05441861]
[1744686276433,0.04994381,129.26,129.24,8.45818961]
[1744686276634,0.04994381,129.26,129.25,29.9]
[1744686277930,0.04994381,129.26,129.25,37.6383]
[1744686278236,8.403771,129.34,129.25,29.9]
[1744686278432,8.403771,129.34,129.25,32.005]
[1744686278629,8.403771,129.32,129.25,29.9]
[1744686279137,0.0589413,129.3,129.27,0.05735779]
[1744686279333,7.7362,129.29,129.27,0.05735779]
[1744686279540,8.4627123,129.3,129.27,0.05735779]
[1744686280138,7.7365,129.28,129.27,0.05735779]
[1744686281937,7.7387,129.25,129.22,29.9]
[1744686282938,7.79527236,129.25,129.22,29.95084783]
[1744686283134,7.79527236,129.25,129.22,37.69074783]
[1744686285242,0.05657236,129.25,129.22,29.95084783]
[1744686285430,0.05657236,129.25,129.22,38.35461883]
[1744686286341,0.05657236,129.25,129.24,7.7389]
[1744686289641,29.9,129.32,129.27,7.7369]
[1744686289842,29.9,129.32,129.26,29.9]
[1744686290142,7.7364,129.29,129.26,37.6374]
[1744686290449,29.9,129.32,129.26,37.6374]
[1744686290744,0.05859369,129.29,129.26,37.688951]
[1744686291542,7.79449369,129.29,129.26,37.688951]
[1744686293449,7.7366,129.28,129.26,29.951551]
[1744686293747,0.05859369,129.29,129.26,29.951551]
[1744686294448,7.79479369,129.29,129.26,37.689151]
[1744686294850,7.79479369,129.29,129.26,29.951551]
[1744686295347,7.79479369,129.29,129.26,37.688951]
[1744686296955,7.7365,129.28,129.26,37.688951]
[1744686297147,7.7365,129.28,129.26,29.951551]
[1744686297753,7.7365,129.28,129.26,37.689251]
[1744686299855,7.79469369,129.29,129.26,37.689251]
[1744686300256,0.05859369,129.29,129.27,7.7368]
[1744686300861,8.46236469,129.29,129.26,0.051551]
[1744686301161,5.37845952,129.27,129.26,0.051551]
[1744686301361,0.05859369,129.29,129.26,0.051551]
[1744686301553,0.05859369,129.29,129.26,5.43001052]
[1744686302053,0.05859369,129.29,129.27,5.37845952]
[1744686302258,5.37845952,129.34,129.28,29.86]
[1744686302559,7.38895952,129.35,129.3,5.37845952]
[1744686302757,7.7335,129.33,129.3,5.37845952]
[1744686303360,7.78311031,129.33,129.3,5.43768391]
[1744686303662,7.78311031,129.33,129.3,13.17288391]
[1744686303858,2.0191,129.38,129.32,5.37845952]
[1744686304051,7.41795952,129.41,129.36,5.37845952]
[1744686304255,7.7291,129.41,129.38,5.37845952]
[1744686304453,2.1913,129.43,129.36,29.86]
[1744686304658,5.37845952,129.39,129.36,29.86]
[1744686304858,5.37845952,129.38,129.36,29.86]
[1744686305060,5.37845952,129.37,129.36,0.05544594]
[1744686305255,35.23845952,129.37,129.28,29.86]
[1744686305457,5.37845952,129.31,129.28,29.86]
[1744686305659,13.11395952,129.3,129.28,29.86]
[1744686305859,7.7355,129.3,129.28,29.86]
[1744686306265,7.7897201,129.3,129.28,29.9146191]
[1744686309372,0.0542201,129.3,129.28,29.9146191]
[1744686310372,0.0542201,129.3,129.28,37.6510191]
[1744686310565,0.0542201,129.3,129.28,29.9146191]
[1744686311071,7.7899201,129.3,129.28,29.9146191]
[1744686311966,0.0542201,129.3,129.28,29.9146191]
[1744686312673,0.0542201,129.3,129.28,37.6507191]
[1744686312867,0.0542201,129.3,129.28,29.9146191]
[1744686314670,38.25834489,129.37,129.28,38.31296399]
[1744686314870,8.39834489,129.4,129.32,8.39834489]
[1744686315074,3.2560699,129.39,129.33,29.86]
[1744686315269,10.9869699,129.38,129.34,7.7325]
[1744686315470,8.39834489,129.42,129.33,29.86]
[1744686315671,7.7303,129.39,129.35,7.7319]
[1744686315975,0.05943888,129.39,129.36,0.05126204]
[1744686316279,7.7311,129.37,129.36,0.05126204]
[1744686316574,10.98225095,129.37,129.36,0.05126204]
[1744686316978,3.25115095,129.37,129.36,0.05126204]
[1744686317369,0.05943888,129.39,129.36,0.05126204]
[1744686317775,7.78973888,129.39,129.36,0.05126204]
[1744686318676,7.7305,129.38,129.36,0.05126204]
[1744686319672,7.78963888,129.39,129.36,0.05126204]
[1744686322380,0.05943888,129.39,129.36,0.05126204]
[1744686322678,0.05943888,129.39,129.36,38.28960693]
[1744686322877,0.05943888,129.39,129.36,29.89126204]
[1744686323179,7.78973888,129.39,129.36,29.89126204]
[1744686323676,0.05943888,129.39,129.36,29.89126204]
[1744686324073,0.05943888,129.39,129.38,7.7305]
[1744686324880,10.58594489,129.46,129.38,8.39834489]
[1744686325073,2.1876,129.46,129.39,29.84]
[1744686325976,0.05088079,129.44,129.41,0.05807485]
[1744686326679,7.77818079,129.44,129.41,0.05807485]
[1744686326977,0.05088079,129.44,129.41,0.05807485]
[1744686327781,7.7279,129.43,129.41,0.05807485]
[1744686328079,8.44922568,129.44,129.41,0.05807485]
[1744686328271,2.1588,129.43,129.41,0.05807485]
[1744686328473,46.61668978,129.42,129.34,29.82]
[1744686328679,8.39834489,129.38,129.34,29.82]
[1744686329076,7.7322,129.36,129.34,29.82]
[1744686329276,13.10240258,129.36,129.34,29.82]
[1744686329478,0.05749539,129.36,129.34,35.23990441]
[1744686329780,0.05749539,129.36,129.34,29.86970183]
[1744686330181,0.05749539,129.36,129.34,35.23990441]
[1744686330980,0.05749539,129.36,129.34,42.97260441]
[1744686331181,0.05749539,129.36,129.34,29.86970183]
[1744686332881,7.7323,129.35,129.34,29.86970183]
[1744686333283,0.05749539,129.36,129.34,29.86970183]
[1744686333483,7.78949539,129.36,129.34,29.86970183]
[1744686334383,7.7323,129.35,129.34,29.86970183]
[1744686334884,0.05749539,129.36,129.34,29.86970183]
[1744686336187,0.05749539,129.36,129.34,37.60210183]
[1744686337585,0.05749539,129.36,129.34,29.86970183]
[1744686339192,7.7323,129.35,129.34,29.86970183]
[1744686339387,7.7323,129.35,129.34,0.04970183]
[1744686339592,0.05749539,129.36,129.31,7.7342]
[1744686339593,8.44679685,129.36,129.31,29.84]
[1744686340685,7.7341,129.33,129.32,0.05302259]
[1744686343091,7.7359,129.3,129.28,29.84]
[1744686343588,8.38930146,129.34,129.28,29.84]
[1744686344188,7.7357,129.3,129.28,29.84]
[1744686344691,7.7357,129.3,129.28,29.89086587]
[1744686345087,0.04943941,129.32,129.28,29.89086587]
[1744686346293,7.7348,129.31,129.28,37.62706587]
[1744686346593,0.04943941,129.32,129.28,29.89086587]
[1744686346987,7.7354,129.3,129.28,29.89086587]
[1744686348096,0.04943941,129.32,129.28,29.89086587]
[1744686348794,0.04943941,129.32,129.3,7.7349]
[1744686348994,0.04943941,129.32,129.31,29.84]
[1744686350995,7.78353941,129.32,129.31,29.84]
[1744686351192,0.04943941,129.32,129.28,29.89086587]
[1744686352793,7.7356,129.3,129.28,29.89086587]
[1744686356197,7.7359,129.29,129.28,29.89086587]
[1744686357301,0.04943941,129.32,129.28,29.89086587]
[1744686359204,7.7348,129.31,129.28,37.62716587]
[1744686360699,0.04943941,129.32,129.28,29.89086587]
[1744686361601,0.04943941,129.32,129.28,37.62696587]
[1744686361602,7.7347,129.31,129.28,37.62696587]
[1744686362003,0.04943941,129.32,129.28,29.89086587]
[1744686362204,0.04943941,129.32,129.28,38.28016733]
[1744686362598,40.35580146,129.39,129.3,8.38930146]
[1744686362903,40.35580146,129.39,129.31,31.9696]
[1744686363102,40.35580146,129.39,129.31,33.9877]
[1744686363404,7.7321,129.36,129.32,7.7336]
[1744686363598,7.7321,129.36,129.31,33.9877]
[1744686363902,0.05219099,129.35,129.33,0.05172715]
[1744686364102,0.05219099,129.35,129.33,7.78482715]
[1744686364803,0.05219099,129.35,129.34,7.7329]
[1744686365304,0.05219099,129.35,129.34,37.5729]
[1744686366303,386.84,129.42,129.34,37.5729]
[1744686366304,357.0,129.42,129.34,38.22930146]
[1744686366499,42.50080146,129.45,129.36,8.38930146]
[1744686366699,3.23935119,129.44,129.38,7.7301]
[1744686366900,3.23935119,129.43,129.38,7.7301]
[1744686367100,42.50080146,129.45,129.38,7.7301]
[1744686367101,7.7285,129.42,129.38,7.7301]
[1744686367296,0.05081619,129.42,129.39,0.05686618]
[1744686367506,0.05081619,129.42,129.4,38.20930146]
[1744686367702,29.82,129.48,129.44,7.7266]
[1744686367904,10.38440146,129.5,129.44,7.7266]
[1744686368104,3.24055935,129.49,129.43,29.82]
[1744686368299,29.82,129.51,129.46,7.7253]
[1744686368498,29.82,129.51,129.44,8.38930146]
[1744686368904,0.05223624,129.49,129.46,0.05656875]
[1744686369305,0.05223624,129.49,129.46,29.87656875]
[1744686371607,0.05223624,129.49,129.46,0.05656875]
[1744686372208,7.7251,129.47,129.46,0.05656875]
[1744686372811,7.7251,129.47,129.46,6.875e-05]
[1744686373508,38.20930146,129.48,129.46,6.875e-05]
[1744686373509,7.7247,129.48,129.46,6.875e-05]
[1744686373708,0.05223624,129.49,129.46,6.875e-05]
[1744686374211,0.05223624,129.49,129.47,29.82]
[1744686376004,10.42310146,129.56,129.48,8.38930146]
[1744686376211,10.42310146,129.56,129.48,10.50650146]
[1744686376909,10.42310146,129.56,129.48,2.1172]
[1744686377111,10.42310146,129.56,129.47,31.8179]
[1744686377312,0.05243895,129.53,129.51,0.0505332]
[1744686378215,7.7222,129.52,129.51,0.0505332]
[1744686378715,0.05243895,129.53,129.51,0.0505332]
[1744686379609,2.1503,129.59,129.51,2.1133332]
[1744686379916,367.40300146,129.64,129.56,8.38930146]
[1744686380106,371.58030146,129.64,129.56,29.8]
[1744686380308,7.7177,129.6,129.56,37.5197]
[1744686380714,0.04893067,129.59,129.57,0.04886492]
[1744686380910,371.58030146,129.64,129.57,0.04886492]
[1744686381214,6.191,129.64,129.57,0.04886492]
[1744686381407,0.05796729,129.62,129.57,0.04886492]
[1744686382019,7.77436729,129.62,129.58,7.7182]
[1744686382217,7.77436729,129.62,129.59,29.8]
[1744686382412,0.05796729,129.62,129.59,29.8]
[1744686382719,7.7172,129.61,129.59,29.8]
[1744686383519,7.7174,129.6,129.59,29.8]
[1744686383919,0.05796729,129.62,129.57,0.04886492]
[1744686385525,7.7184,129.59,129.57,0.04886492]
[1744686385819,13.42484925,129.59,129.46,555.76]
[1744686386014,13.37315802,129.55,129.51,29.78]
[1744686386220,7.7226,129.52,129.49,29.78]
[1744686386618,13.37315802,129.55,129.49,29.78]
[1744686387023,0.05711544,129.53,129.51,0.05891487]
[1744686388023,7.7222,129.52,129.51,0.05891487]
[1744686388624,7.77881544,129.53,129.51,0.05891487]
[1744686388826,0.05711544,129.53,129.51,0.05891487]
[1744686389425,7.7222,129.52,129.51,0.05891487]
[1744686393124,13.43027346,129.53,129.46,585.54]
[1744686393428,13.37315802,129.53,129.46,585.54]
[1744686394124,0.05532902,129.51,129.48,0.04997682]
[1744686395325,7.7244,129.49,129.48,0.04997682]
[1744686402844,13.42848704,129.51,129.43,29.78]
[1744686403044,13.37315802,129.49,129.43,29.78]
[1744686403347,8.37850012,129.48,129.43,29.78]
[1744686403546,7.7269,129.44,129.43,29.78]
[1744686404143,7.7275,129.43,129.42,0.05436611]
[1744686404344,0.04979048,129.45,129.42,0.05436611]
[1744686404643,7.7275,129.43,129.42,0.05436611]
[1744686406343,7.7271,129.44,129.42,0.05436611]
[1744686406844,9.7708,129.5,129.43,29.8]
[1744686407037,4.0757,129.53,129.47,8.37850012]
[1744686407347,4.0757,129.53,129.48,37.5242]
[1744686407546,7.7228,129.51,129.48,37.5242]
[1744686407747,4.0757,129.53,129.48,29.8]
[1744686408047,0.05535336,129.52,129.49,0.05139081]
[1744686409048,7.7237,129.5,129.49,0.05139081]
[1744686409447,8.37850012,129.5,129.45,29.8]
[1744686410448,7.7253,129.47,129.46,0.04999829]
[1744686410649,0.05657666,129.49,129.46,0.04999829]
[1744686410849,7.78087666,129.49,129.46,0.04999829]
[1744686411246,0.05657666,129.49,129.46,0.04999829]
[1744686411447,7.7251,129.47,129.46,0.04999829]
[1744686413153,7.7273,129.44,129.42,29.8]
[1744686413347,400.19557244,129.5,129.42,29.8]
[1744686413348,13.39557244,129.48,129.42,29.8]
[1744686413548,4.2389,129.47,129.42,29.8]
[1744686413954,7.7273,129.44,129.42,29.8]
[1744686414253,7.78192674,129.44,129.42,29.84887042]
[1744686414554,7.7275,129.43,129.42,29.84887042]
[1744686415754,7.78182674,129.44,129.42,29.84887042]
[1744686416453,0.05462674,129.44,129.42,29.84887042]
[1744686418254,7.7275,129.43,129.42,29.84887042]
[1744686420655,0.05462674,129.44,129.42,29.84887042]
[1744686421257,0.05462674,129.44,129.43,7.7275]
[1744686421856,0.05462674,129.44,129.42,37.57677042]
[1744686422857,0.05462674,129.44,129.43,7.7275]
[1744686424058,0.05462674,129.44,129.42,37.57667042]
[1744686424461,0.05462674,129.44,129.42,29.84887042]
[1744686424752,7.7275,129.43,129.42,0.04887042]
[1744686424957,0.05462674,129.44,129.37,29.78]
[1744686424958,15.46889918,129.44,129.37,29.78]
[1744686425149,2.0187,129.44,129.37,29.78]